Cogmind - Beta 11.1 @@@ ROGUE MODE // 2022.10.12 @ 16:41:11 Player: deadnoob Result: Destroyed by S-10 Pest with Light Assault Rifle Performance ------------- Evolutions (0) 0 Regions Visited (1) 200 Robots Destroyed (0) 0 Value Destroyed (0) 0 Prototype IDs (2) 40 Alien Tech Used (0) 0 Bonus (0) 0 TOTAL SCORE: 240 Bonus ------- None Cogmind --------- Core Integrity 0/250 Matter 29/300 Energy 27/100 System Corruption 0% Temperature Hot (287) Movement Core (100) Ox1 Location -10/Materials Parts ------- > --- POWER (1) -------- (None) > --- PROPULSION (2) --- (None) > --- UTILITY (2) ------ (None) > --- WEAPON (2) ------- Improved Medium Laser Improved Medium Laser > --- INVENTORY (5) ---- Improved EM Shotgun Medium Laser Medium Laser Peak State ------------ > --- POWER ------------ Light Ion Engine > --- PROPULSION ------- (None) > --- UTILITY ---------- Medium Storage Unit > --- WEAPON ----------- Improved EM Shotgun Improved EM Shotgun > --- INVENTORY -------- Ion Engine Medium Laser Medium Laser Medium Laser Improved Medium Laser Improved Medium Laser [Rating: 9] Favorites ----------- Power Light Ion Engine Engine Light Ion Engine Propulsion None Utility Medium Storage Unit Storage Medium Storage Unit Weapon Improved Medium Laser Energy Gun Improved Medium Laser Build | -11 -10 ------- Run | Scr Mat Slots Evolved . | . . Power . | . . Propulsion . | . . Utility . | . . Weapon . | . . Parts Attached 15 | 3 12 Power 2 | 1 1 Engine 2 | 1 1 Core . | . . Reactor . | . . Propulsion . | . . Treads . | . . Leg . | . . Wheel . | . . Hover . | . . Flight . | . . Utility 1 | . 1 Device . | . . Storage 1 | . 1 Processor . | . . Hackware . | . . Protection . | . . Artifact . | . . Weapon 12 | 2 10 Energy Gun 12 | 2 10 Energy Cannon . | . . Ballistic Gun . | . . Ballistic Cannon . | . . Launcher . | . . Special Weapon . | . . Impact Weapon . | . . Slashing Weapon . | . . Piercing Weapon . | . . Special Melee Weapon . | . . Unidentified Prototypes 2 | . 2 Parts Lost 3 | . 3 Power 1 | . 1 Propulsion . | . . Utility . | . . Weapon 2 | . 2 Highest Loss Streak 3 | . 3 To Critical Strikes . | . . Average Slot Usage (%) 49 | . 49 Engine 12 | . 12 Storage 10 | . 10 Energy Gun 26 | . 26 Naked Turns 4 | . 4 Heaviest Build 19 | 7 19 Greatest Support 3 | 3 3 Greatest Overweight (x) 6 | 2 6 Average Overweight (x) 2 | 1 3 Largest Inventory Capacity 10 | 5 10 Average Capacity 7 | 5 8 Most Carried 7 | 3 7 Average Carried 5 | 2 5 Final Capacity 5 | 5 5 Final Carried 3 | 3 3 Class Distribution -------------------- 100% | Mutant Dominant Class ---------------- Mutant | -10/Materials Resources | -11 -10 ----------- Run | Scr Mat Matter Collected 64 | 64 . Remotely . | . . Salvage Created . | . . Parts . | . . Haulers Intercepted . | . . Recyclers Shooed . | . . Parts Field Recycled . | . . Retrieved Matter . | . . Parts Self-Destructed . | . . Prevented . | . . Kills | -11 -10 ------- Run | Scr Mat Combat Hostiles Destroyed . | . . Classes Destroyed . | . . Best Kill Streak . | . . Combat Bots Only . | . . Max Kills in Single Turn . | . . Gunslinging . | . . Exploded . | . . Melee . | . . Uniques/NPCs Destroyed . | . . Combat | -11 -10 -------- Run | Scr Mat Damage Taken 641 | . 641 Core 250 | . 250 Absorbed by Shields . | . . Core Remaining (%) 100 | 100 . Volleys Fired 15 | . 15 Largest 2 | . 2 Hottest 112 | . 112 Shots Fired 28 | . 28 Gun 28 | . 28 Cannon . | . . Launcher . | . . Special . | . . Kinetic . | . . Thermal 22 | . 22 Explosive . | . . Electromagnetic 6 | . 6 Robot Hit Streak 3 | . 3 Robot Miss Streak 3 | . 3 Penetration Max . | . . Secondary Targets . | . . Shots Hit Robots 16 | . 16 Core Hits 2 | . 2 Critical Kills . | . . Critical Parts Destroyed . | . . Critical Strikes . | . . Melee Attacks . | . . Impact . | . . Slashing . | . . Piercing . | . . Sneak Attacks . | . . Combat Hostiles . | . . Follow-up Attacks . | . . Damage Inflicted 278 | . 278 Guns 278 | . 278 Cannons . | . . Explosions . | . . Melee . | . . Ramming . | . . Kinetic . | . . Thermal 189 | . 189 Explosive . | . . Electromagnetic 89 | . 89 Impact . | . . Slashing . | . . Piercing . | . . Highest Corruption . | . . Average Corruption . | . . Corruption Purged . | . . Corruption Blocked . | . . Overload Shots . | . . Overflow Damage . | . . Projectiles . | . . Explosions . | . . Melee . | . . Knockbacks . | . . Impact . | . . Kinetic . | . . Secondary . | . . Self-Inflicted Damage . | . . Shots . | . . Rammed . | . . Targets Rammed . | . . Kicked . | . . Crushed . | . . Highest Temperature 485 | . 485 Average Temperature 280 | . 280 Received Heat Transfer 351 | . 351 Effects 8 | . 8 Shutdowns 1 | . 1 Short Circuit 2 | . 2 Damage (major) 5 | . 5 Siege Activations . | . . Robots Corrupted . | . . Combat Hostiles . | . . Parts Fried . | . . Impact Corruptions . | . . Robots Melted . | . . Combat Hostiles . | . . Parts Melted . | . . Heat Transferred 407 | . 407 Parts Sabotaged . | . . Parts Stolen . | . . Parts Stripped . | . . Power Chain Reactions . | . . Missiles Intercepted . | . . Alert | -11 -10 ------- Run | Scr Mat Peak Influence 45 | . 45 Initial . | . . Average 5 | . 7 Maximum Alert Level . | . . Low Security (%) 100 | 100 100 Level 1 . | . . Level 2 . | . . Level 3 . | . . Level 4 . | . . Level 5 . | . . High Security . | . . Max Security . | . . Squads Dispatched . | . . Investigation . | . . Extermination . | . . Reinforcement . | . . Assault . | . . Garrison . | . . Intercept . | . . Searches Triggered . | . . Construction Impeded . | . . Haulers Reinforced . | . . Active Scanning Responses . | . . Cargo Convoy Interrupts . | . . Stealth | -11 -10 --------- Run | Scr Mat Distress Signals . | . . Communications Jammed . | . . Distress Signals . | . . Times Spotted 7 | . 7 Peak Tracking Total 5 | . 5 Tactical Retreats 1 | . 1 Traps | -11 -10 ------- Run | Scr Mat Traps Triggered . | . . Indirectly . | . . Trap Hack Attempts . | . . Triggered . | . . Disarmed . | . . Reprogrammed . | . . Reused . | . . Traps Extracted . | . . Installed . | . . Triggered . | . . Machines | -11 -10 ---------- Run | Scr Mat Machines Disabled . | . . Max in Single Turn . | . . Machines Sabotaged . | . . Garrisons Compromised . | . . Overloaded Fab Kills . | . . Hacking | -11 -10 --------- Run | Scr Mat Machines Accessed . | . . Terminals . | . . Fabricators . | . . Repair Stations . | . . Recycling Units . | . . Scanalyzers . | . . Garrison Access . | . . Total Hacks . | . . Successful . | . . Failed . | . . Catastrophic . | . . Database Lockouts . | . . Manual . | . . Terminals . | . . Fabricators . | . . Repair Stations . | . . Recycling Units . | . . Scanalyzers . | . . Garrison Access . | . . Terminal Hacks . | . . Fabricator Hacks . | . . Repair Station Hacks . | . . Recycling Unit Hacks . | . . Scanalyzer . | . . Garrison Access Hacks . | . . Unauthorized Hacks . | . . Terminals . | . . Fabricators . | . . Repair Stations . | . . Recycling Units . | . . Scanalyzers . | . . Garrison Access . | . . Data Cores Recovered . | . . Used . | . . Hacking Detections . | . . Full Trace Events . | . . Feedback Events . | . . Feedback Blocked . | . . Robot Schematics Acquired . | . . Robots Built . | . . Authchips . | . . Time . | . . Total Robot Build Rating . | . . Part Schematics Acquired . | . . Parts Built . | . . Authchips . | . . Time . | . . Total Part Build Rating . | . . Parts Repaired . | . . Time . | . . Parts Recycled . | . . Recycled Matter . | . . Retrieved Matter . | . . Retrieved Components . | . . Parts Scanalyzed . | . . Part Schematics Acquired . | . . Parts Damaged . | . . Bothacking | -11 -10 ------------ Run | Scr Mat Used RIF Installer . | . . Robots Hacked . | . . Non-combat . | . . Combat . | . . Robot Hacks Applied . | . . Relay Couplers Released . | . . Fabnet Peak Effective % . | . . Robots Rewired . | . . Allies Hacked . | . . Hacks Repelled . | . . Allies | -11 -10 -------- Run | Scr Mat Total Allies . | . . Largest Group . | . . Highest-Rated Group . | . . Highest-Rated Ally . | . . Total Orders . | . . Ally Attacks . | . . Total Damage . | . . Kills . | . . Allies Corrupted . | . . Allies Melted . | . . Intel | -11 -10 ------- Run | Scr Mat Robot Analysis Total . | . . Derelict Logs Recovered . | . . Drone Launches . | . . Drone Recoveries . | . . Exploration | -11 -10 ------------- Run | Scr Mat Turns Passed 278 | 56 222 Spaces Moved 99 | 37 62 Core 99 | 37 62 Treads . | . . Legs . | . . Wheels . | . . Hover . | . . Flight . | . . Fastest Speed 50 | 50 50 Average Speed 194 | 133 230 Slowest Speed 350 | 150 350 Overloaded Moves . | . . Propulsion Burnouts . | . . Robots Hopped . | . . Cave-ins Triggered . | . . Exploration Rate (%) 7 | 3 12 Regions Visited 1 Branch Regions . Pre-discovered Areas . | . . Known Exits Taken . | . . Unknown Exits Taken 1 | 1 . Scrap Searched . | . . Spaces Dug . | . . Terrain Destroyed . | . . Melee . | . . Projectile . | . . AOE . | . . Terrain Rammed . | . . Walls Destroyed . | . . Machines Disabled . | . . Actions | -11 -10 --------- Run | Scr Mat Total 154 | 42 112 Wait 12 | . 12 Move 98 | 36 62 Hop . | . . Pick Up 7 | 3 4 Fast Attach 6 | 3 3 Attach 4 | . 4 Detach 3 | . 3 Swap 5 | . 5 Drop 4 | . 4 Fire 15 | . 15 Melee . | . . Ram . | . . Kick . | . . Crush . | . . Escape Stasis . | . . Rewire . | . . Trap . | . . Miscellaneous . | . . Route ------- -11/Scrapyard -10/Materials History --------- Turn | Location | Event 2 | -11/Scrapyard | Met Revision 17 14 | -11/Scrapyard | Discovered new exit (range 16) 57 | -11/Scrapyard | Entered Materials 254 | -10/Materials | Core integrity fell below 50% 275 | -10/Materials | Core integrity fell below 20% 279 | -10/Materials | Destroyed by S-10 Pest with Light Assault Rifle Last Messages --------------- 00157_ R-06 Scavenger collects Faulty Imp. Medium Laser. 00218_ Critical hit (Burn: +37). 00232_ Power failure, Lgt. Ion Engine shutdown. 00235_ Overheating: Imp. Medium Laser damaged (-35). 00235_ Overheating: Imp. Medium Laser damaged (-14). 00240_ Overheating: Imp. EM Shotgun damaged (-21). 00240_ Overheating: Lgt. Ion Engine damaged (-20). 00240_ Overheating: Imp. EM Shotgun damaged (-25). 00241_ Lgt. Ion Engine destroyed. 00246_ G-34 Mercenary IFF system glitched. 00246_ Imp. EM Shotgun destroyed. 00250_ Imp. EM Shotgun broken. 00250_ Overheating: Short circuit. 00252_ G-34 Mercenary misfires. 00256_ G-34 Mercenary IFF system glitched. 00259_ Imp. Medium Laser destroyed. 00260_ Ion Engine broken. 00260_ Overheating: Short circuit. 00260_ Dropped Med. Storage Unit. 00261_ Dropped Broken Ion Engine. Map ----- +----------------------------------------------------+ | ??????????????????????????????????????? | | ???????????????????????????????#####??? | | ????????????????????#########? ???? | | ????????????????????? #? """???? | | ????????????????????????# # """""??? | | ????????????????????????# # """""??? | | ????????????????????????# + """""??? | | ????????????????????????# # """ ??? | | ????????????????????????# # ?? | | ????????????????????????# #?"""T""" # | | ????????????????????##### #?########? | | ????????????????????#]] #?????????? | | ????????????????????#]] #?????????? | | ????????????????????# #?????????? | | ????????????????????# #?????????? | | ????????????????????# ####??????? | | ????????????????????#[[ !!##?????? | | ????????????????????##### #?????? | | ????????????????????????# !#?????? | | ????????????######??????# !#?????? | | ????????????# ####### !#?????? | | ????????????# !!##?????? | | ????????????# T [ ####??????? | | ????????????# *! #?????????? | | ????????????# ########g######?????? | | ????????????## ???????# @ #?????? | | ?????????????#?????????# #?????? | | ???????????????????????#s #?????? | | ???????????????????????/s #?????? | | ?????????????????????? # #?????? | | ?????????????????????" # #?????? | | ????????????????????? ?# #?????? | | ???????????????????? ?/s #?????? | | ???????????????????#r??# #?????? | | ???????????????????#???##########?????? | | ??????????????????????????????????????? | | ??????????????????????????????????????? | | ??????????????????????????????????????? | | ??????????????????????????????????????? | | ??????????????????????????????????????? | | ??????????????????????????????????????? | | ??????????????????????????????????????? | | ??????????????????????????????????????? | | ??????????????????????????????????????? | | ??????????????????????????????????????? | | ??????????????????????????????????????? | | ??????????????????????????????????????? | | ??????????????????????????????????????? | | ??????????????????????????????????????? | | ??????????????????????????????????????? | +----------------------------------------------------+ Best States ------------- Heat Dissipation 25 Energy Generation 10 Energy Capacity 250 Matter Stores 134 Matter Capacity 300 Sight Range 16 Terrain Scan Density 10 Evasion (%) 40 Item Schematics ----------------- None Robot Schematics ------------------ None Fabricated ------------ Nothing Alien Tech Used ----------------- None Achievements -------------- None Challenges ------------ None Game ------ Seed BlastThrusterExtractor Manual? 0 Play Time 00:04:25 Cumulative 137.4 hours Start 2022.10.12 @ 16:38:33 End 2022.10.12 @ 16:41:11 Sessions 1 Manual Loads 0 Difficulty Rogue Special Mode None Game No. 166 Rogue 166 Adventurer 0 Explorer 0 Win Type - Total 1 Types 1/0/0/0/0/0/0/0/0 Lore% 73 Gallery% 73 Achievement% 57 Wizard Run 0 Options --------- ASCII 0 Keyboard 0 Movement Numpad Keybinds 0 Fullscreen 2 Font 18/SmallcapsGlow Map View 76x50 Tactical HUD 1 Map Filters NONE Filters NONE Steam 1 RUN: dbd0172e-f557-4b85-b4cc-6d023fb6be92